[Event "WYCC U16 Open 2019"]
[Site "Mumbai"]
[Date "2019.10.03"]
[Round "3.10"]
[White "Raja Rithvik R"]
[Black "Amatya, Pramit"]
[Result "1-0"]
[ECO "E04"]
[WhiteElo "2369"]
[BlackElo "1719"]
[Annotator "NA"]
[PlyCount "101"]
[EventDate "2019.10.02"]
[EventType "swiss"]
[EventCountry "IND"]
[SourceTitle "playchess.com"]
[Source "ChessBase"]
[SourceQuality "1"]
[WhiteTeam "India"]
[BlackTeam "Nepal"]
[WhiteTeamCountry "IND"]
[BlackTeamCountry "NEP"]
[TimeControl "40/5400+30:1800+30"]

1. d4 {[%emt 0:00:11]} Nf6 {[%emt 0:00:34]} 2. c4 {[%emt 0:00:06]} e6 {[%emt 0:00:06]} 3. g3 {[%emt 0:00:10]} d5 {[%emt 0:00:23]} 4. Nf3 {[%emt 0:00:05]} dxc4 {[%emt 0:00:37]} 5. Bg2 {[%emt 0:00:05]} Bd7 {[%emt 0:01:25]} 6. Ne5 {[%emt 0:00:07]} Bc6 {[%emt 0:00:51]} 7. Nxc6 {[%emt 0:00:06]} Nxc6 {[%emt 0:00:06]} 8. O-O {[%emt 0:00:04]} Be7 {[%emt 0:00:53]} 9. Qa4 {[%emt 0:06:35]} O-O {[%emt 0:03:49]} 10. Rd1 {[%emt 0:13:23]} Nd5 {[%emt 0:11:17]} 11. Qxc4 {[%emt 0:00:46]} Qd7 {[%emt 0:04:22]} 12. Nc3 {[%emt 0:07:06]} Rfd8 {[%emt 0:06:10]} 13. e3 {[%emt 0:06:24]} a6 {[%emt 0:08:33]} 14. Qe2 {[%emt 0:02:46]} Nb6 {[%emt 0:13:15]} 15. Bd2 {[%emt 0:06:01]} Rab8 {[%emt 0:03:13]} 16. Rac1 {[%emt 0:01:30]} Bb4 {[%emt 0:07:45]} 17. a3 {[%emt 0:09:50]} Bxc3 {[%emt 0:00:58]} 18. Bxc3 {[%emt 0:02:51]} Ne7 {[%emt 0:05:00]} 19. Ba5 {[%emt 0:03:40]} Rdc8 {[%emt 0:08:09]} 20. Rc2 {[%emt 0:04:02]} Nbd5 {[%emt 0:01:19]} 21. e4 {[%emt 0:00:39]} Nf6 {[%emt 0:01:36]} 22. Bc3 {[%emt 0:01:13]} Ne8 {[%emt 0:05:04]} 23. Rcd2 {[%emt 0:04:49]} c6 {[%emt 0:01:25]} 24. h4 {[%emt 0:01:26]} Nc7 {[%emt 0:00:48]} 25. b3 {[%emt 0:02:17]} Rd8 {[%emt 0:01:14]} 26. Ba5 {[%emt 0:04:47]} b6 {[%emt 0:02:35]} 27. Bc3 {[%emt 0:01:44]} Nb5 {[%emt 0:00:54]} 28. Bb2 {[%emt 0:00:16]} Qe8 {[%emt 0:00:40]} 29. Qg4 {[%emt 0:05:01]} Qf8 {[%emt 0:03:09]} 30. a4 {[%emt 0:01:06]} Nc7 {[%emt 0:00:38]} 31. Ba3 {[%emt 0:00:38]} Qe8 {[%emt 0:01:12]} 32. Rc1 {[%emt 0:01:08]} Rd7 {[%emt 0:00:56]} 33. Rdc2 {[%emt 0:05:11]} Rxd4 {[%emt 0:02:52]} 34. Bb2 {[%emt 0:00:08]} e5 {[%emt 0:01:43]} 35. Bxd4 {[%emt 0:01:09]} exd4 {[%emt 0:00:17]} 36. e5 {[%emt 0:02:07]} c5 {[%emt 0:00:36]} 37. a5 {[%emt 0:00:51]} Ne6 {[%emt 0:00:18]} 38. Qe2 {[%emt 0:01:46]} Qb5 {[%emt 0:01:41]} 39. Qxb5 {[%emt 0:02:05]} axb5 {[%emt 0:00:07]} 40. axb6 {[%emt 0:00:51]} Rxb6 {[%emt 0:01:00]} 41. Bh3 {[%emt 0:30:23]} c4 {[%emt 0:31:48]} 42. bxc4 {[%emt 0:00:07]} bxc4 {[%emt 0:00:17]} 43. Rxc4 {[%emt 0:00:13]} g6 {[%emt 0:00:24]} 44. Re1 {[%emt 0:03:44]} Nf5 {[%emt 0:01:08]} 45. Kg2 {[%emt 0:00:00]} Rb2 {[%emt 0:00:00]} 46. Rc8+ {[%emt 0:00:00]} Kg7 {[%emt 0:00:00]} 47. Bxf5 {[%emt 0:00:00]} gxf5 {[%emt 0:00:00]} 48. h5 {[%emt 0:00:00]} f4 {[%emt 0:00:00]} 49. h6+ {[%emt 0:00:00]} Kg6 {[%emt 0:00:00]} 50. Rg8+ {[%emt 0:00:00]} Kf5 {[%emt 0:00:00]} 51. g4# 1-0

[Event "WYCC U16 Open 2019"]
[Site "Mumbai"]
[Date "2019.10.03"]
[Round "3.14"]
[White "Tomiello, Mateus Costamilan"]
[Black "Tarlabasi, Emirhan"]
[Result "0-1"]
[ECO "C00"]
[WhiteElo "2030"]
[BlackElo "2365"]
[Annotator "NA"]
[PlyCount "62"]
[EventDate "2019.10.02"]
[EventType "swiss"]
[EventCountry "IND"]
[SourceTitle "playchess.com"]
[Source "ChessBase"]
[SourceQuality "1"]
[WhiteTeam "Brazil"]
[BlackTeam "Turkey"]
[WhiteTeamCountry "BRA"]
[BlackTeamCountry "TUR"]
[TimeControl "40/5400+30:1800+30"]

1. e4 e6 2. d3 d5 3. Nd2 Nf6 4. Ngf3 c5 5. g3 Nc6 6. Bg2 Be7 7. O-O O-O 8. e5 Nd7 9. Re1 b5 10. Nf1 a5 11. h4 Bb7 12. Bf4 Qc7 13. N1h2 Rfc8 14. Ng4 h6 15. c4 bxc4 16. dxc4 dxc4 17. Nd2 Nd4 18. Ne4 Bf8 19. Rc1 Rab8 20. Qd2 h5 21. Ne3 Nxe5 22. Bxe5 Qxe5 23. Nxc4 Qf5 24. Qe3 Rd8 25. Nxa5 Bd5 26. Nc4 Bxc4 27. Rxc4 Rxb2 28. Qa3 Rdb8 29. Kh2 Nc2 30. Rxc2 Rxc2 31. Qd3 Rxa2 0-1

[Event "WYCC U16 Open 2019"]
[Site "Mumbai"]
[Date "2019.10.04"]
[Round "4.3"]
[White "Raja Rithvik R"]
[Black "Niemann, Hans Moke"]
[Result "0-1"]
[ECO "B39"]
[WhiteElo "2369"]
[BlackElo "2439"]
[Annotator "NA"]
[PlyCount "67"]
[EventDate "2019.10.02"]
[EventType "swiss"]
[EventCountry "IND"]
[SourceTitle "playchess.com"]
[Source "ChessBase"]
[SourceQuality "1"]
[TimeControl "40/5400+30:1800+30"]

1. c4 {[%emt 0:00:00]} g6 {[%emt 0:00:36]} 2. Nf3 {[%emt 0:00:43]} Bg7 {[%emt 0:00:07]} 3. d4 {[%emt 0:00:22]} c5 {[%emt 0:01:44]} 4. e4 {[%emt 0:01:41]} cxd4 {[%emt 0:07:18]} 5. Nxd4 {[%emt 0:00:05]} Nc6 {[%emt 0:00:04]} 6. Be3 {[%emt 0:00:06]} Nf6 {[%emt 0:00:18]} 7. Nc3 {[%emt 0:00:04]} Ng4 {[%emt 0:02:01]} 8. Qxg4 {[%emt 0:00:06]} Nxd4 {[%emt 0:00:04]} 9. Qd1 {[%emt 0:00:05]} e5 {[%emt 0:00:57]} 10. Bd3 {[%emt 0:06:40]} d6 {[%emt 0:00:41]} 11. O-O {[%emt 0:00:37]} O-O {[%emt 0:00:07]} 12. Qd2 {[%emt 0:01:32]} Be6 {[%emt 0:01:16]} 13. Bxd4 {[%emt 0:09:37]} exd4 {[%emt 0:00:06]} 14. Ne2 {[%emt 0:00:02]} Qb6 {[%emt 0:01:37]} 15. Rad1 {[%emt 0:22:29]} Rfc8 {[%emt 0:04:19]} 16. b3 {[%emt 0:00:33]} a5 {[%emt 0:01:19]} 17. h3 {[%emt 0:10:08]} a4 {[%emt 0:04:12]} 18. Bc2 {[%emt 0:00:44]} axb3 {[%emt 0:00:18]} 19. axb3 {[%emt 0:00:07]} Ra2 {[%emt 0:00:19]} 20. Nc1 {[%emt 0:00:00]} Ra3 {[%emt 0:00:30]} 21. Nd3 {[%emt 0:00:00]} Qa7 {[%emt 0:00:30]} 22. Nb4 {[%emt 0:00:00]} Qa5 {[%emt 0:09:03]} 23. f4 {[%emt 0:20:03]} b5 {[%emt 0:07:31]} 24. f5 {[%emt 0:18:24]} Bd7 {[%emt 0:00:30]} 25. f6 {[%emt 0:00:30]} Bf8 {[%emt 0:00:30]} 26. Nd5 {[%emt 0:00:30]} Qxd2 {[%emt 0:00:30]} 27. Rxd2 {[%emt 0:00:30]} bxc4 {[%emt 0:00:30]} 28. bxc4 {[%emt 0:00:30]} Ra2 {[%emt 0:00:30]} 29. Rff2 {[%emt 0:00:30]} Rxc4 {[%emt 0:00:30]} 30. Bb3 {[%emt 0:00:30]} Ra1+ {[%emt 0:00:30]} 31. Kh2 {[%emt 0:00:30]} Ra3 {[%emt 0:00:30]} 32. Rf3 {[%emt 0:00:30]} Rc8 {[%emt 0:00:30]} 33. Ba2 {[%emt 0:00:30]} Rxf3 {[%emt 0:00:30]} 34. gxf3 {[%emt 0:00:30]} 0-1

[Event "WYCC U16 Open 2019"]
[Site "Mumbai"]
[Date "2019.10.04"]
[Round "4.10"]
[White "Tarlabasi, Emirhan"]
[Black "Wartiovaara, Oliver"]
[Result "1-0"]
[ECO "D86"]
[WhiteElo "2365"]
[BlackElo "2232"]
[Annotator "NA"]
[PlyCount "69"]
[EventDate "2019.10.02"]
[EventType "swiss"]
[EventCountry "IND"]
[SourceTitle "playchess.com"]
[Source "ChessBase"]
[SourceQuality "1"]
[TimeControl "40/5400+30:1800+30"]

1. d4 {[%emt 0:00:00]} Nf6 {[%emt 0:00:00]} 2. c4 {[%emt 0:00:02]} g6 {[%emt 0:00:00]} 3. Nc3 {[%emt 0:01:20]} d5 {[%emt 0:00:00]} 4. cxd5 {[%emt 0:04:43]} Nxd5 {[%emt 0:00:00]} 5. e4 {[%emt 0:00:37]} Nxc3 {[%emt 0:00:00]} 6. bxc3 {[%emt 0:00:06]} Bg7 {[%emt 0:00:03]} 7. Bc4 {[%emt 0:01:00]} c5 {[%emt 0:00:09]} 8. Ne2 {[%emt 0:00:10]} O-O {[%emt 0:00:48]} 9. Be3 {[%emt 0:00:36]} Nc6 {[%emt 0:00:08]} 10. Rc1 {[%emt 0:01:35]} cxd4 {[%emt 0:07:29]} 11. cxd4 {[%emt 0:00:16]} Qa5+ {[%emt 0:00:03]} 12. Kf1 {[%emt 0:00:15]} Qa3 {[%emt 0:03:45]} 13. Rc3 {[%emt 0:06:27]} Qd6 {[%emt 0:13:24]} 14. h4 {[%emt 0:11:12]} h5 {[%emt 0:28:07]} 15. f3 {[%emt 0:21:59]} Na5 {[%emt 0:07:13]} 16. Bd3 {[%emt 0:24:18]} Bd7 {[%emt 0:20:04]} 17. e5 {[%emt 0:00:30]} Qb4 {[%emt 0:00:30]} 18. Qd2 {[%emt 0:00:30]} Bb5 {[%emt 0:00:30]} 19. Kf2 {[%emt 0:00:30]} Bxd3 {[%emt 0:00:30]} 20. Qxd3 {[%emt 0:00:30]} Rfc8 21. Rb1 {[%emt 0:00:30]} Qa4 {[%emt 0:01:00]} 22. Rbc1 {[%emt 0:05:27]} Rxc3 {[%emt 0:02:38]} 23. Qxc3 {[%emt 0:00:33]} Nc6 {[%emt 0:01:44]} 24. a3 {[%emt 0:04:14]} e6 {[%emt 0:01:28]} 25. Qb2 {[%emt 0:01:13]} Rb8 {[%emt 0:03:18]} 26. Nc3 {[%emt 0:01:36]} Qa5 {[%emt 0:01:33]} 27. Ne4 {[%emt 0:00:48]} Bf8 {[%emt 0:03:13]} 28. Rxc6 {[%emt 0:01:14]} Bxa3 {[%emt 0:00:06]} 29. Qc3 {[%emt 0:02:41]} Qxc3 {[%emt 0:02:11]} 30. Rxc3 {[%emt 0:00:01]} Bb4 {[%emt 0:00:08]} 31. Rc7 {[%emt 0:04:07]} a5 {[%emt 0:00:22]} 32. Bh6 {[%emt 0:00:50]} Kh7 {[%emt 0:00:42]} 33. Rxf7+ {[%emt 0:00:36]} Kxh6 {[%emt 0:00:07]} 34. Ng5 {[%emt 0:00:04]} Rh8 {[%emt 0:01:13]} 35. Rxb7 {[%emt 0:00:15]} 1-0

[Event "WYCC U16 Open 2019"]
[Site "Mumbai"]
[Date "2019.10.04"]
[Round "4.14"]
[White "Soto, Miguel Angel"]
[Black "Fuglestein, Sander"]
[Result "1-0"]
[ECO "B15"]
[WhiteElo "2283"]
[BlackElo "2091"]
[Annotator "NA"]
[PlyCount "81"]
[EventDate "2019.10.02"]
[EventType "swiss"]
[EventCountry "IND"]
[SourceTitle "playchess.com"]
[Source "ChessBase"]
[SourceQuality "1"]
[TimeControl "40/5400+30:1800+30"]

1. e4 c6 2. d4 d5 3. Nc3 dxe4 4. Nxe4 Nf6 5. Nxf6+ exf6 6. c3 Bd6 7. Bd3 O-O 8. Qc2 Re8+ 9. Ne2 h5 10. O-O Qc7 11. h3 Nd7 12. Bd2 Nf8 13. Rfe1 Be6 14. c4 g6 15. b3 Rad8 16. Bc3 Nh7 17. Kh1 Qd7 18. Ng1 Bc7 19. Rf1 Qd6 20. f4 Bc8 21. c5 Qd5 22. f5 g5 23. Qd1 h4 24. Bc4 Qd7 25. Qh5 Re3 26. Bb2 Rf8 27. Rad1 Qe7 28. d5 cxd5 29. Bxd5 b6 30. Nf3 Bf4 31. Nxh4 Kg7 32. Rxf4 gxf4 33. Qg4+ Kh8 34. Qxf4 bxc5 35. Bxf7 Kg7 36. Bc4 Re1+ 37. Kh2 Rxd1 38. Qg4+ Ng5 39. Qxg5+ Kh7 40. Qg6+ Kh8 41. Qh6+ 1-0

[Event "WYCC U16 Open 2019"]
[Site "Mumbai"]
[Date "2019.10.04"]
[Round "4.15"]
[White "Soham Kamotra"]
[Black "Bilych, Olexiy"]
[Result "0-1"]
[ECO "A14"]
[WhiteElo "2091"]
[BlackElo "2281"]
[Annotator "NA"]
[PlyCount "86"]
[EventDate "2019.10.02"]
[EventType "swiss"]
[EventCountry "IND"]
[SourceTitle "playchess.com"]
[Source "ChessBase"]
[SourceQuality "1"]
[TimeControl "40/5400+30:1800+30"]

1. c4 {[%emt 0:00:09]} Nf6 {[%emt 0:00:00]} 2. g3 {[%emt 0:00:06]} e6 {[%emt 0:00:00]} 3. Bg2 {[%emt 0:00:04]} d5 {[%emt 0:00:00]} 4. Nf3 {[%emt 0:00:14]} Be7 {[%emt 0:00:00]} 5. O-O {[%emt 0:00:08]} O-O {[%emt 0:00:02]} 6. b3 {[%emt 0:00:05]} b6 {[%emt 0:04:09]} 7. Bb2 {[%emt 0:00:35]} Bb7 {[%emt 0:00:11]} 8. e3 {[%emt 0:00:09]} c5 {[%emt 0:01:35]} 9. Qe2 {[%emt 0:03:50]} Nc6 {[%emt 0:04:41]} 10. d3 {[%emt 0:04:24]} Qc7 {[%emt 0:03:21]} 11. Nc3 {[%emt 0:00:31]} Rad8 {[%emt 0:02:07]} 12. Rac1 {[%emt 0:05:32]} Qb8 {[%emt 0:06:29]} 13. Rfd1 {[%emt 0:06:50]} Qa8 {[%emt 0:08:36]} 14. cxd5 {[%emt 0:01:58]} Nxd5 {[%emt 0:07:36]} 15. Nxd5 {[%emt 0:00:38]} Rxd5 {[%emt 0:04:31]} 16. d4 {[%emt 0:17:31]} cxd4 {[%emt 0:02:06]} 17. Nxd4 {[%emt 0:01:25]} Nxd4 {[%emt 0:11:08]} 18. Rxd4 {[%emt 0:00:14]} Rxd4 {[%emt 0:08:25]} 19. Bxb7 {[%emt 0:00:50]} Qxb7 {[%emt 0:00:18]} 20. Bxd4 {[%emt 0:00:07]} Rc8 {[%emt 0:01:53]} 21. Rxc8+ {[%emt 0:00:09]} Qxc8 {[%emt 0:00:08]} 22. Kg2 {[%emt 0:01:03]} Qd7 {[%emt 0:02:04]} 23. Qf3 {[%emt 0:05:13]} f6 {[%emt 0:01:43]} 24. Qe4 {[%emt 0:01:30]} g6 {[%emt 0:07:27]} 25. g4 {[%emt 0:06:35]} Kf7 {[%emt 0:03:15]} 26. Qf3 {[%emt 0:02:29]} Qb5 {[%emt 0:03:04]} 27. Qa8 {[%emt 0:06:20]} e5 {[%emt 0:01:28]} 28. Bc3 {[%emt 0:05:42]} Qc5 {[%emt 0:00:43]} 29. Bd2 {[%emt 0:00:06]} Qd6 {[%emt 0:00:30]} 30. Bc3 {[%emt 0:00:42]} Qd3 {[%emt 0:04:31]} 31. Qc6 {[%emt 0:04:00]} Bc5 {[%emt 0:00:21]} 32. Be1 {[%emt 0:09:12]} Qd1 {[%emt 0:02:30]} 33. Qc7+ {[%emt 0:01:58]} Kg8 {[%emt 0:00:48]} 34. Qc8+ {[%emt 0:00:43]} Kg7 {[%emt 0:00:35]} 35. Bc3 {[%emt 0:03:38]} Qd5+ {[%emt 0:01:10]} 36. Kg3 {[%emt 0:00:23]} Qd3 {[%emt 0:01:11]} 37. Be1 {[%emt 0:00:34]} Bxe3 {[%emt 0:00:51]} 38. Qc3 {[%emt 0:06:10]} Bf4+ {[%emt 0:00:13]} 39. Kg2 {[%emt 0:00:01]} Qe4+ {[%emt 0:00:27]} 40. f3 {[%emt 0:00:30]} Qe2+ {[%emt 0:00:12]} 41. Bf2 {[%emt 0:30:01]} e4 {[%emt 0:32:32]} 42. fxe4 {[%emt 0:00:43]} Qxe4+ {[%emt 0:00:42]} 43. Kh3 {[%emt 0:03:07]} Qh1 {[%emt 0:00:29]} 0-1

[Event "WYCC U16 Open 2019"]
[Site "Mumbai"]
[Date "2019.10.04"]
[Round "4.16"]
[White "Turgut, Aydin"]
[Black "Sarzhanov, Chingizkhan"]
[Result "1-0"]
[ECO "B41"]
[WhiteElo "2281"]
[BlackElo "2069"]
[Annotator "NA"]
[PlyCount "39"]
[EventDate "2019.10.02"]
[EventType "swiss"]
[EventCountry "IND"]
[SourceTitle "playchess.com"]
[Source "ChessBase"]
[SourceQuality "1"]
[TimeControl "40/5400+30:1800+30"]

1. e4 c5 2. Nf3 e6 3. d4 cxd4 4. Nxd4 a6 5. Be2 Nf6 6. Nc3 Qc7 7. O-O Nc6 8. Be3 Bb4 9. Na4 b5 10. Nxc6 dxc6 11. Bc5 Bxc5 12. Nxc5 O-O 13. Qd4 e5 14. Qc3 Nd7 15. Rfd1 Rd8 16. Qd3 Ra7 17. Bg4 b4 18. Rd2 Qb6 19. Nxd7 Bxd7 20. Rad1 1-0

[Event "WYCC U16 Open 2019"]
[Site "Mumbai"]
[Date "2019.10.05"]
[Round "5.6"]
[White "Bilych, Olexiy"]
[Black "Sankalp Gupta"]
[Result "*"]
[ECO "B90"]
[WhiteElo "2281"]
[BlackElo "2369"]
[Annotator "RC"]
[PlyCount "28"]
[EventDate "2019.10.02"]
[EventType "swiss"]
[EventCountry "IND"]
[SourceTitle "playchess.com"]
[Source "ChessBase"]
[SourceQuality "1"]
[TimeControl "40/5400+30:1800+30"]

1. e4 c5 2. Nf3 d6 3. d4 cxd4 4. Nxd4 Nf6 5. Nc3 a6 6. h3 e6 7. g4 Nfd7 8. g5 b5 9. Be3 Bb7 10. Bg2 Be7 11. h4 b4 12. Nce2 Nc5 13. Ng3 Nbd7 14. O-O Nb6 *

[Event "WYCC U16 Open 2019"]
[Site "Mumbai"]
[Date "2019.10.05"]
[Round "5.11"]
[White "Raahul V S"]
[Black "Raja Rithvik R"]
[Result "*"]
[ECO "A30"]
[WhiteElo "2262"]
[BlackElo "2369"]
[Annotator "RC"]
[PlyCount "27"]
[EventDate "2019.10.02"]
[EventType "swiss"]
[EventCountry "IND"]
[SourceTitle "playchess.com"]
[Source "ChessBase"]
[SourceQuality "1"]
[TimeControl "40/5400+30:1800+30"]

1. c4 c5 2. Nf3 Nc6 3. Nc3 g6 4. e3 Nf6 5. d4 cxd4 6. Nxd4 Bg7 7. Be2 O-O 8. O-O d5 9. cxd5 Nxd5 10. Nxc6 bxc6 11. Na4 Rb8 12. e4 Nb6 13. Nc5 Nd7 14. Na4 *

[Event "WYCC U16 Open 2019"]
[Site "Mumbai"]
[Date "2019.10.05"]
[Round "5.15"]
[White "Mis, Mieszko"]
[Black "McGowan, Cameron"]
[Result "*"]
[ECO "E68"]
[WhiteElo "2345"]
[BlackElo "2221"]
[Annotator "RC"]
[PlyCount "29"]
[EventDate "2019.10.02"]
[EventType "swiss"]
[EventCountry "IND"]
[SourceTitle "playchess.com"]
[Source "ChessBase"]
[SourceQuality "1"]
[TimeControl "40/5400+30:1800+30"]

1. d4 {[%emt 0:00:00]} Nf6 {[%emt 0:00:00]} 2. c4 {[%emt 0:00:00]} g6 {[%emt 0:00:00]} 3. g3 {[%emt 0:00:09]} Bg7 {[%emt 0:00:00]} 4. Bg2 {[%emt 0:00:03]} O-O {[%emt 0:00:00]} 5. Nc3 {[%emt 0:00:14]} d6 {[%emt 0:00:00]} 6. Nf3 {[%emt 0:00:45]} Nbd7 {[%emt 0:00:06]} 7. O-O {[%emt 0:00:54]} e5 {[%emt 0:00:11]} 8. e4 {[%emt 0:01:38]} exd4 {[%emt 0:00:35]} 9. Nxd4 {[%emt 0:01:26]} Re8 {[%emt 0:00:11]} 10. h3 {[%emt 0:10:37]} a6 {[%emt 0:01:39]} 11. Be3 {[%emt 0:08:31]} Rb8 {[%emt 0:05:23]} 12. Qc2 {[%emt 0:05:54]} Ne5 {[%emt 0:04:58]} 13. b3 {[%emt 0:02:34]} c5 {[%emt 0:00:19]} 14. Nde2 {[%emt 0:00:45]} b5 {[%emt 0:00:24]} 15. Rad1 {[%emt 0:03:11]} *

[Event "WYCC U16 Open 2019"]
[Site "Mumbai"]
[Date "2019.10.05"]
[Round "5.16"]
[White "Goderdzishvili, Giga"]
[Black "Harshavardhan G B"]
[Result "*"]
[ECO "E11"]
[WhiteElo "2038"]
[BlackElo "2362"]
[Annotator "RC"]
[PlyCount "28"]
[EventDate "2019.10.02"]
[EventType "swiss"]
[EventCountry "IND"]
[SourceTitle "playchess.com"]
[Source "ChessBase"]
[SourceQuality "1"]
[TimeControl "40/5400+30:1800+30"]

1. d4 Nf6 2. c4 e6 3. Nf3 Bb4+ 4. Bd2 a5 5. g3 d5 6. a3 Bd6 7. Nc3 c6 8. c5 Bc7 9. b4 Ne4 10. Bg2 Nxd2 11. Nxd2 e5 12. Nf3 axb4 13. axb4 Rxa1 14. Qxa1 exd4 *

[Event "WYCC U16 Open 2019"]
[Site "Mumbai"]
[Date "2019.10.06"]
[Round "6.1"]
[White "Makarian, Rudik"]
[Black "Daghli, Arash"]
[Result "1-0"]
[ECO "E73"]
[WhiteElo "2386"]
[BlackElo "2387"]
[Annotator "ChessBase"]
[PlyCount "67"]
[EventDate "2019.10.02"]
[EventType "swiss"]
[EventCountry "IND"]
[SourceTitle "playchess.com"]
[Source "ChessBase"]
[SourceQuality "1"]
[TimeControl "40/5400+30:1800+30"]

1. d4 {[%emt 0:00:00]} Nf6 {[%emt 0:00:00]} 2. c4 {[%emt 0:00:00]} g6 {[%emt 0:00:00]} 3. Nc3 {[%emt 0:00:00]} Bg7 {[%emt 0:00:09]} 4. e4 {[%emt 0:00:00]} d6 {[%emt 0:00:15]} 5. Be2 {[%emt 0:00:00]} O-O {[%emt 0:00:05]} 6. Be3 {[%emt 0:00:05]} Na6 {[%emt 0:01:37]} 7. Nf3 {[%emt 0:00:06]} Ng4 {[%emt 0:00:59]} 8. Bg5 {[%emt 0:00:11]} f6 {[%emt 0:01:17]} 9. Bc1 {[%emt 0:08:28]} e5 {[%emt 0:00:52]} 10. O-O {[%emt 0:01:22]} f5 {[%emt 0:05:41]} 11. Bg5 {[%emt 0:21:37]} Qe8 {[%emt 0:04:04]} 12. h3 {[%emt 0:03:24]} fxe4 {[%emt 0:05:22]} 13. hxg4 {[%emt 0:00:41]} exf3 {[%emt 0:00:14]} 14. Bxf3 {[%emt 0:00:02]} Kh8 {[%emt 0:30:53]} 15. Re1 {[%emt 0:06:20]} Qf7 {[%emt 0:00:16]} 16. dxe5 {[%emt 0:01:41]} Bxe5 {[%emt 0:01:19]} 17. Ne4 {[%emt 0:07:01]} Bg7 {[%emt 0:06:53]} 18. Qd2 {[%emt 0:12:54]} Qxc4 {[%emt 0:18:39]} 19. Bh6 {[%emt 0:04:56]} Qf7 {[%emt 0:00:20]} 20. Rac1 {[%emt 0:07:10]} Rb8 {[%emt 0:13:48]} 21. Rc3 {[%emt 0:15:00]} Bd7 {[%emt 0:02:46]} 22. Ng5 {[%emt 0:00:48]} Qf6 {[%emt 0:00:12]} 23. Bxg7+ {[%emt 0:00:47]} Qxg7 {[%emt 0:01:25]} 24. Nxh7 {[%emt 0:00:31]} Qxh7 {[%emt 0:01:13]} 25. Bd5 {[%emt 0:00:12]} Bxg4 {[%emt 0:01:44]} 26. Qd4+ {[%emt 0:00:09]} Qg7 {[%emt 0:00:37]} 27. Qxg4 {[%emt 0:00:05]} Rf5 {[%emt 0:00:40]} 28. Rh3+ {[%emt 0:02:50]} Rh5 {[%emt 0:00:01]} 29. Rxh5+ {[%emt 0:02:20]} gxh5 {[%emt 0:00:03]} 30. Qxh5+ {[%emt 0:00:01]} Qh7 {[%emt 0:00:12]} 31. Qg5 {[%emt 0:01:01]} Qg7 {[%emt 0:00:33]} 32. Qh4+ {[%emt 0:00:43]} Qh7 {[%emt 0:00:01]} 33. Qf4 {[%emt 0:00:44]} Nc5 {[%emt 0:01:54]} 34. Re3 {[%emt 0:00:13]} 1-0

[Event "WYCC U16 Open 2019"]
[Site "Mumbai"]
[Date "2019.10.06"]
[Round "6.2"]
[White "Pogosyan, Stefan"]
[Black "Aronyak Ghosh"]
[Result "1/2-1/2"]
[ECO "A40"]
[WhiteElo "2364"]
[BlackElo "2380"]
[Annotator "ChessBase"]
[PlyCount "97"]
[EventDate "2019.10.02"]
[EventType "swiss"]
[EventCountry "IND"]
[SourceTitle "playchess.com"]
[Source "ChessBase"]
[SourceQuality "1"]
[TimeControl "40/5400+30:1800+30"]

1. d4 b6 2. c4 Bb7 3. Nc3 e6 4. a3 Nf6 5. d5 Bd6 6. Nf3 O-O 7. g3 exd5 8. cxd5 Na6 9. Bg2 c6 10. O-O cxd5 11. b4 Nc7 12. Bb2 Re8 13. Qb3 Ba6 14. b5 Bb7 15. Rfd1 a6 16. a4 Ne6 17. Nh4 Nc5 18. Qc2 Be5 19. Nxd5 Nxd5 20. Bxd5 Bxd5 21. Rxd5 Bxb2 22. Qxb2 axb5 23. Qxb5 Ra5 24. Qc4 Qf6 25. Ra2 Ne4 26. Nf5 Qe6 27. Ne3 Nxf2 28. Kxf2 Qxe3+ 29. Kg2 Qe6 30. Kf2 Qe3+ 31. Kg2 Qe6 32. Rad2 Rxd5 33. Qxd5 Qxd5+ 34. Rxd5 Rxe2+ 35. Kg1 f6 36. Rxd7 Rb2 37. Rb7 Rb4 38. Kg2 h5 39. h4 Kh7 40. Ra7 Kg6 41. a5 bxa5 42. Rxa5 Rb7 43. Kf3 Kh6 44. Rc5 g6 45. Ra5 Kg7 46. Ra6 Kf7 47. Rc6 Ke7 48. Ra6 Rd7 49. Ke4 1/2-1/2

[Event "WYCC U16 Open 2019"]
[Site "Mumbai"]
[Date "2019.10.06"]
[Round "6.3"]
[White "Turgut, Aydin"]
[Black "Niemann, Hans Moke"]
[Result "0-1"]
[ECO "B62"]
[WhiteElo "2281"]
[BlackElo "2439"]
[Annotator "ChessBase"]
[PlyCount "48"]
[EventDate "2019.10.02"]
[EventType "swiss"]
[EventCountry "IND"]
[SourceTitle "playchess.com"]
[Source "ChessBase"]
[SourceQuality "1"]
[TimeControl "40/5400+30:1800+30"]

1. e4 {[%emt 0:00:00]} c5 {[%emt 0:00:42]} 2. Nf3 {[%emt 0:00:00]} d6 {[%emt 0:00:08]} 3. d4 {[%emt 0:00:01]} cxd4 {[%emt 0:00:06]} 4. Nxd4 {[%emt 0:00:06]} Nf6 {[%emt 0:00:03]} 5. Nc3 {[%emt 0:00:20]} Nc6 {[%emt 0:01:07]} 6. Bg5 {[%emt 0:01:19]} e6 {[%emt 0:00:14]} 7. Be2 {[%emt 0:06:09]} Qa5 {[%emt 0:01:56]} 8. Bxf6 {[%emt 0:12:44]} gxf6 {[%emt 0:00:07]} 9. Qd2 {[%emt 0:06:24]} a6 {[%emt 0:03:15]} 10. f4 {[%emt 0:09:04]} Bd7 {[%emt 0:00:47]} 11. O-O-O {[%emt 0:03:25]} b5 {[%emt 0:00:50]} 12. Nb3 {[%emt 0:18:12]} Qc7 {[%emt 0:00:06]} 13. Bh5 {[%emt 0:09:11]} b4 {[%emt 0:02:57]} 14. Ne2 {[%emt 0:00:45]} Rg8 {[%emt 0:01:49]} 15. Ned4 {[%emt 0:05:32]} Rc8 {[%emt 0:04:34]} 16. Kb1 {[%emt 0:02:37]} Nd8 {[%emt 0:01:46]} 17. Rhe1 {[%emt 0:08:26]} a5 {[%emt 0:01:35]} 18. e5 {[%emt 0:06:20]} fxe5 {[%emt 0:00:17]} 19. fxe5 {[%emt 0:00:10]} d5 {[%emt 0:00:27]} 20. Nf3 {[%emt 0:03:19]} a4 {[%emt 0:00:13]} 21. Nbd4 {[%emt 0:00:02]} a3 {[%emt 0:00:11]} 22. Re2 {[%emt 0:06:06]} axb2 {[%emt 0:00:09]} 23. Ng5 {[%emt 0:00:30]} b3 {[%emt 0:12:33]} 24. cxb3 {[%emt 0:00:15]} Qc1+ {[%emt 0:00:09]} 0-1

[Event "WYCC U16 Open 2019"]
[Site "Mumbai"]
[Date "2019.10.06"]
[Round "6.4"]
[White "Kacharava, Nikolozi"]
[Black "Bilych, Olexiy"]
[Result "1/2-1/2"]
[ECO "C60"]
[WhiteElo "2428"]
[BlackElo "2281"]
[Annotator "ChessBase"]
[PlyCount "132"]
[EventDate "2019.10.02"]
[EventType "swiss"]
[EventCountry "IND"]
[SourceTitle "playchess.com"]
[Source "ChessBase"]
[SourceQuality "1"]
[TimeControl "40/5400+30:1800+30"]

1. e4 e5 2. Nf3 Nc6 3. Bb5 g6 4. c3 a6 5. Ba4 Bg7 6. d4 exd4 7. cxd4 b5 8. Bc2 d5 9. O-O Bg4 10. exd5 Bxf3 11. Qxf3 Nxd4 12. Qe4+ Ne7 13. Bg5 h6 14. Bxe7 Qxe7 15. Nd2 Qxe4 16. Bxe4 f5 17. Bd3 O-O-O 18. a4 Rxd5 19. Ra3 Rhd8 20. Nb1 Nf3+ 21. gxf3 Rxd3 22. axb5 axb5 23. Nc3 b4 24. Ra8+ Kb7 25. Rxd8 Rxd8 26. Na4 Bd4 27. Rc1 Rd5 28. b3 Re5 29. Kf1 f4 30. Rc2 c5 31. Rd2 Kc6 32. Rc2 Kb5 33. Rc4 Re8 34. Rc1 Ra8 35. Ke2 Re8+ 36. Kf1 g5 37. h3 h5 38. Rd1 Re6 39. Rd2 g4 40. hxg4 hxg4 41. fxg4 f3 42. Rd3 Rf6 43. g5 Rf4 44. g6 c4 45. g7 Bxg7 46. Rd5+ Kc6 47. Rc5+ Kd6 48. bxc4 Rd4 49. Ke1 Rd3 50. Rc8 Bd4 51. Rb8 b3 52. c5+ Kc7 53. Rb5 b2 54. Rb6 Be5 55. Rb5 Bd4 56. Rb6 Bf6 57. Rb5 Be5 58. Rb6 Bd4 59. Rb5 Kc6 60. Rb6+ Kd5 61. Rb8 Be5 62. Rb7 Bg7 63. Rb8 Bf6 64. Rb5 Bd4 65. Rb8 Bf6 66. Rb5 Bd4 1/2-1/2